fUST/lending_fUST_20240227
["ID","MTS","AMOUNT","RATE_DAILY","PERIOD"]
[315454685,1709044240482,-500.0,0.00019178,2]
[315454687,1709044240493,-694.82180753,0.00019178,2]
[315454690,1709044240503,-190.901151,0.00019178,2]
[315454692,1709044240512,-186.288497,0.00019178,2]
[315454694,1709044240522,-166.666666,0.00019178,2]
[315454696,1709044240532,-200.6117409,0.00019301,2]
[315454697,1709044240545,-211.03122967,0.00019352,2]
[315454698,1709044240554,-200.6117409,0.000194,2]
[315454699,1709044240563,-349.6153443,0.000194,2]
[315454700,1709044240572,-153.0,0.000194,2]
[315454701,1709044240581,-153.0,0.000194,2]
[315454702,1709044240590,-200.6117409,0.000194,2]
[315454703,1709044240599,-666.24052979,0.00019442,2]
[315454704,1709044240609,-500.0,0.0001945,2]
[315454705,1709044240618,-500.0,0.0001945,2]
[315454706,1709044240628,-238.47583384,0.00019451,2]
[315454707,1709044240637,-500.0,0.00019451,2]
[315454708,1709044240647,-500.0,0.00019451,2]
[315454709,1709044240656,-500.0,0.00019451,2]
[315454710,1709044240665,-500.0,0.00019452,2]
[315454711,1709044240675,-500.0,0.00019452,2]
[315454712,1709044240684,-500.0,0.00019452,2]
[315454713,1709044240693,-500.0,0.00019452,2]
[315454714,1709044240702,-535.12050427,0.00019452,2]
[315454715,1709044240711,-500.0,0.00019452,2]
[315454716,1709044240720,-744.5,0.00019452,2]
[315454717,1709044240729,-500.0,0.00019452,2]
[315454718,1709044240738,-500.0,0.00019452,2]
[315454719,1709044240747,-417.34105156,0.00019452,2]
[315454720,1709044240756,-710.74,0.00019452,2]
[315454721,1709044240766,-500.0,0.00019452,2]
[315454722,1709044240775,-500.0,0.00019452,2]
[315454723,1709044240788,-500.0,0.00019452,2]
[315454724,1709044240797,-500.0,0.00019452,2]
[315454725,1709044240807,-394.21638932,0.00019452,2]
[315454726,1709044240816,-500.0,0.00019452,2]
[315454727,1709044240825,-660.55,0.00019452,2]
[315454728,1709044240834,-228.67540805,0.00019452,2]
[315454729,1709044240844,-1392.53,0.00019452,2]
[315454730,1709044240853,-500.0,0.00019452,2]
[315454731,1709044240864,-868.95,0.00019452,2]
[315454732,1709044240874,-500.0,0.00019452,2]
[315454733,1709044240883,-1010.15,0.00019452,2]
[315454734,1709044240894,-500.0,0.00019452,2]
[315454735,1709044240903,-500.0,0.00019452,2]
[315454736,1709044240912,-500.0,0.00019452,2]
[315454737,1709044240924,-500.0,0.00019452,2]
[315454738,1709044240934,-500.0,0.00019452,2]
[315454739,1709044240943,-500.0,0.00019452,2]
[315454740,1709044240952,-500.0,0.00019452,2]
[315454741,1709044240962,-500.0,0.00019452,2]
[315454742,1709044240971,-500.0,0.00019452,2]
[315454743,1709044240981,-503.94738389,0.00019452,2]
[315454744,1709044240990,-500.0,0.00019452,2]
[315454745,1709044241000,-162.83762222,0.00019452,2]
[315454746,1709044241009,-500.0,0.00019452,2]
[315454747,1709044241019,-500.0,0.00019452,2]
[315454748,1709044241028,-500.0,0.00019452,2]
[315454749,1709044241040,-500.0,0.00019452,2]
[315454750,1709044241049,-543.68572627,0.00019452,2]
[315454751,1709044241058,-500.0,0.00019452,2]
[315454752,1709044241067,-500.0,0.00019452,2]
[315454753,1709044241076,-500.0,0.00019452,2]
[315454754,1709044241086,-1821.31,0.00019452,2]
[315454755,1709044241095,-563.60361199,0.00019452,2]
[315454756,1709044241104,-1707.84,0.00019452,2]
[315454757,1709044241113,-500.0,0.00019452,2]
[315454758,1709044241122,-500.0,0.00019452,2]
[315454759,1709044241131,-500.0,0.00019452,2]
[315454760,1709044241140,-500.0,0.00019452,2]
[315454761,1709044241149,-500.0,0.00019452,2]
[315454762,1709044241159,-382.1661985,0.00019452,2]
[315454763,1709044241168,-500.0,0.00019452,2]
[315454764,1709044241177,-500.0,0.00019452,2]
[315454765,1709044241187,-500.0,0.00019452,2]
[315454766,1709044241196,-500.0,0.00019452,2]
[315454767,1709044241206,-1022.66,0.00019452,2]
[315454768,1709044241217,-500.0,0.00019452,2]
[315454769,1709044241226,-500.0,0.00019452,2]
[315454770,1709044241235,-311.25723657,0.00019452,2]
[315454771,1709044241245,-500.0,0.00019452,2]
[315454772,1709044241254,-500.0,0.00019452,2]
[315454773,1709044241263,-500.0,0.00019452,2]
[315454774,1709044241272,-500.0,0.00019452,2]
[315454775,1709044241413,-500.0,0.00019452,2]
[315454776,1709044241424,-568.85457968,0.00019452,2]
[315454777,1709044241433,-921.28,0.00019452,2]
[315454778,1709044241442,-500.0,0.00019452,2]
[315454779,1709044241451,-500.0,0.00019452,2]
[315454780,1709044241460,-500.0,0.00019452,2]
[315454781,1709044241470,-500.0,0.00019452,2]
[315454782,1709044241479,-337.0351218,0.00019452,2]
[315454783,1709044241489,-500.0,0.00019452,2]
[315454784,1709044241498,-500.0,0.00019452,2]
[315454785,1709044241508,-2899.08,0.00019452,2]
[315454786,1709044241517,-500.0,0.00019452,2]
[315454787,1709044241526,-3088.1,0.00019452,2]
[315454788,1709044241537,-500.0,0.00019452,2]
[315454789,1709044241545,-500.0,0.00019452,2]
[315454790,1709044241554,-500.0,0.00019452,2]
[315454791,1709044241563,-1264.04,0.00019452,2]
[315454792,1709044241573,-500.0,0.00019452,2]
[315454793,1709044241581,-500.0,0.00019452,2]
[315454794,1709044241591,-500.0,0.00019452,2]
[315454795,1709044241600,-502.85792086,0.00019452,2]
[315454796,1709044241609,-500.0,0.00019452,2]
[315454797,1709044241618,-826.81,0.00019452,2]
[315454798,1709044241627,-500.0,0.00019452,2]
[315454799,1709044241636,-500.0,0.00019452,2]
[315454800,1709044241646,-1946.63,0.00019452,2]
[315454801,1709044241655,-500.0,0.00019452,2]
[315454802,1709044241664,-500.0,0.00019452,2]
[315454803,1709044241673,-2030.08,0.00019452,2]
[315454804,1709044241682,-500.0,0.00019452,2]
[315454805,1709044241691,-500.0,0.00019452,2]
[315454806,1709044241701,-500.0,0.00019452,2]
[315454807,1709044241710,-500.0,0.00019452,2]
[315454808,1709044241719,-500.0,0.00019452,2]
[315454809,1709044241729,-551.11345887,0.00019452,2]
[315454810,1709044241739,-500.0,0.00019452,2]
[315454811,1709044241748,-500.0,0.00019452,2]
[315454812,1709044241758,-1631.71,0.00019452,2]
[315454813,1709044241767,-500.0,0.00019452,2]
[315454814,1709044241776,-500.0,0.00019452,2]
[315454815,1709044241787,-500.0,0.00019452,2]
[315454816,1709044241796,-500.0,0.00019452,2]
[315454817,1709044241806,-2362.65,0.00019452,2]
[315454818,1709044241815,-10013.57,0.00019452,2]
[315454819,1709044241824,-500.0,0.00019452,2]
[315454820,1709044241833,-555.05,0.00019452,2]
[315454821,1709044241843,-500.0,0.00019452,2]
[315454822,1709044241852,-500.0,0.00019452,2]
[315454823,1709044241862,-5236.31,0.00019452,2]
[315454824,1709044241872,-500.0,0.00019452,2]
[315454825,1709044241881,-2005.82,0.00019452,2]
[315454826,1709044241891,-500.0,0.00019452,2]
[315454827,1709044241901,-500.0,0.00019452,2]
[315454828,1709044241910,-500.0,0.00019452,2]
[315454829,1709044241920,-500.0,0.00019452,2]
[315454830,1709044241930,-491.01392198,0.00019452,2]
[315454831,1709044241939,-502.36541284,0.00019452,2]
[315454832,1709044241949,-500.0,0.00019452,2]
[315454833,1709044241958,-500.0,0.00019452,2]
[315454834,1709044241967,-501.95643743,0.00019452,2]
[315454835,1709044241977,-21208.09,0.00019452,2]
[315454836,1709044241986,-500.0,0.00019452,2]
[315454837,1709044241996,-500.0,0.00019452,2]
[315454838,1709044242006,-500.0,0.00019452,2]
[315454839,1709044242015,-500.0,0.00019452,2]
[315454840,1709044242024,-500.0,0.00019452,2]
[315454841,1709044242034,-500.0,0.00019452,2]
[315454842,1709044242044,-5187.04,0.00019452,2]
[315454843,1709044242054,-500.0,0.00019452,2]
[315454844,1709044242063,-501.21301573,0.00019452,2]
[315454845,1709044242073,-500.0,0.00019452,2]
[315454846,1709044242082,-500.0,0.00019452,2]
[315454847,1709044242091,-571.99,0.00019452,2]
[315454848,1709044242100,-500.0,0.00019452,2]
[315454849,1709044242110,-216.5862094,0.00019452,2]
[315454850,1709044242119,-500.0,0.00019452,2]
[315454851,1709044242129,-576.30378723,0.00019452,2]
[315454852,1709044242138,-500.0,0.00019452,2]
[315454853,1709044242147,-500.0,0.00019452,2]
[315454854,1709044242156,-500.0,0.00019452,2]
[315454855,1709044242167,-1689.69,0.00019452,2]
[315454856,1709044242176,-500.0,0.00019452,2]
[315454857,1709044242185,-500.0,0.00019452,2]
[315454858,1709044242195,-3781.07,0.00019452,2]
[315454859,1709044242204,-219.53147788,0.00019452,2]
[315454860,1709044242214,-1655.38,0.00019452,2]
[315454861,1709044242224,-500.0,0.00019452,2]
[315454862,1709044242233,-500.0,0.00019452,2]
[315454863,1709044242242,-1578.16,0.00019452,2]
[315454864,1709044242251,-500.0,0.00019452,2]
[315454865,1709044242261,-183.67121497,0.00019452,2]
[315454866,1709044242271,-2673.35,0.00019452,2]
[315454867,1709044242281,-667.21,0.00019452,2]
[315454868,1709044242292,-7801.82,0.00019452,2]
[315454869,1709044242301,-20188.02,0.00019452,2]
[315454870,1709044242315,-3796.7,0.00019452,2]
[315454871,1709044242324,-1657.02,0.00019452,2]
[315454872,1709044242334,-3901.79,0.00019452,2]
[315454873,1709044242343,-500.0,0.00019452,2]
[315454874,1709044242354,-190.12652069,0.00019452,2]
[315454875,1709044242363,-4659.57,0.00019452,2]
[315454876,1709044242373,-500.0,0.00019452,2]
[315454877,1709044242382,-818.57,0.00019452,2]
[315454878,1709044242393,-934.37,0.00019452,2]
[315454879,1709044242402,-1080.01,0.00019452,2]
[315454880,1709044242412,-500.0,0.00019452,2]
[315454881,1709044242421,-714.22,0.00019452,2]
[315454882,1709044242431,-153.0,0.00019479,2]
[315454883,1709044242441,-153.0,0.00019479,2]
[315454884,1709044242451,-153.0,0.00019479,2]
[315454885,1709044242460,-153.0,0.00019479,2]
[315454886,1709044242470,-153.0,0.000195,2]
[315454887,1709044242479,-153.0,0.000195,2]
[315454888,1709044242489,-200.6117409,0.000195,2]
[315454889,1709044242499,-200.6117409,0.000195,2]
[315454890,1709044242510,-153.0,0.000195,2]
[315454891,1709044242520,-153.0,0.000195,2]
[315454892,1709044242530,-153.0,0.000195,2]
[315454893,1709044242542,-153.0,0.000195,2]
[315454894,1709044242551,-153.0,0.000195,2]
[315454895,1709044242561,-153.0,0.000195,2]
[315454896,1709044242571,-211.03122966,0.00019605,2]
[315454897,1709044242581,-1562.45461811,0.00019624,2]
[315454898,1709044242591,-280.14317129,0.00019624,2]
[315454901,1709044242600,-555.34716751,0.00019624,2]
[315454903,1709044242610,-324.11988706,0.00019624,2]
[315454905,1709044242620,-704.14144082,0.00019625,2]
[315454907,1709044242629,-500.0,0.00019625,2]
[315454909,1709044242639,-500.0,0.00019625,2]
[315454911,1709044242649,-500.0,0.00019625,2]
[315454913,1709044242659,-500.0,0.00019625,2]
[315454914,1709044242668,-500.0,0.00019625,2]
[315454915,1709044242678,-500.0,0.00019625,2]
[315454916,1709044242688,-500.0,0.00019625,2]
[315454917,1709044242698,-250466.68400738,0.00019626,2]
[315454918,1709044242708,-166.666666,0.00019627,2]
[315454919,1709044242718,-200.6117409,0.0001963,2]
[315454921,1709044242728,-200.6117409,0.0001963,2]
[315454923,1709044242738,-200.7320372,0.0001963,2]
[315454925,1709044242748,-200.6117409,0.000197,2]
[315454928,1709044242757,-200.6117409,0.000197,2]
[315454929,1709044242767,-153.0,0.000197,2]
[315454931,1709044242777,-200.6117409,0.000197,2]
[315454933,1709044242789,-200.6117409,0.000197,2]
[315454935,1709044242799,-153.0,0.000197,2]
[315454937,1709044242809,-153.0,0.000197,2]
[315454938,1709044242819,-153.0,0.000197,2]
[315454940,1709044242829,-500.0,0.00019724,2]
[315454942,1709044242839,-500.0,0.00019725,2]
[315454944,1709044242849,-500.0,0.00019725,2]
[315454946,1709044242858,-589.3917214,0.00019725,2]
[315454948,1709044242868,-500.0,0.00019726,2]
[315454950,1709044242878,-500.0,0.00019726,2]
[315454952,1709044242887,-500.0,0.00019726,2]
[315454954,1709044242897,-500.0,0.00019726,2]
[315454956,1709044242907,-500.0,0.00019726,2]
[315454958,1709044242917,-744.5,0.00019726,2]
[315454961,1709044242926,-500.0,0.00019726,2]
[315454963,1709044242935,-500.0,0.00019726,2]
[315454965,1709044242945,-710.74,0.00019726,2]
[315454967,1709044242954,-500.0,0.00019726,2]
[315454969,1709044242963,-500.0,0.00019726,2]
[315454971,1709044242972,-500.0,0.00019726,2]
[315454973,1709044242981,-500.0,0.00019726,2]
[315454975,1709044242990,-660.55,0.00019726,2]
[315454977,1709044242999,-1392.53,0.00019726,2]
[315454979,1709044243009,-500.0,0.00019726,2]
[315454981,1709044243019,-868.95,0.00019726,2]
[315454983,1709044243029,-500.0,0.00019726,2]
[315454985,1709044243040,-1010.15,0.00019726,2]
[315454987,1709044243049,-500.0,0.00019726,2]
[315454989,1709044243058,-500.0,0.00019726,2]
[315454991,1709044243068,-500.0,0.00019726,2]
[315454992,1709044243077,-500.0,0.00019726,2]
[315454994,1709044243086,-500.0,0.00019726,2]
[315454996,1709044243096,-500.0,0.00019726,2]
[315454997,1709044243105,-576.22818176,0.00019726,2]
[315454998,1709044243115,-500.0,0.00019726,2]
[315454999,1709044243125,-500.0,0.00019726,2]
[315455000,1709044243135,-317.34565024,0.00019726,2]
[315455001,1709044243145,-500.0,0.00019726,2]
[315455002,1709044243154,-500.0,0.00019726,2]
[315455003,1709044243164,-500.0,0.00019726,2]
[315455004,1709044243173,-500.0,0.00019726,2]
[315455005,1709044243182,-500.0,0.00019726,2]
[315455006,1709044243192,-360.71997877,0.00019726,2]
[315455007,1709044243201,-1821.31,0.00019726,2]
[315455008,1709044243211,-1707.84,0.00019726,2]
[315455009,1709044243222,-500.0,0.00019726,2]
[315455010,1709044243232,-500.0,0.00019726,2]
[315455011,1709044243241,-500.0,0.00019726,2]
[315455012,1709044243251,-500.0,0.00019726,2]
[315455014,1709044243260,-500.0,0.00019726,2]
[315455015,1709044243270,-500.0,0.00019726,2]
[315455016,1709044243280,-500.0,0.00019726,2]
[315455017,1709044243295,-218.36768508,0.00019726,2]
[315455018,1709044243305,-500.0,0.00019726,2]
[315455019,1709044243314,-1022.66,0.00019726,2]
[315455020,1709044243326,-500.0,0.00019726,2]
[315455021,1709044243335,-500.0,0.00019726,2]
[315455022,1709044243344,-437.29176718,0.00019726,2]
[315455023,1709044243354,-500.0,0.00019726,2]
[315455024,1709044243363,-500.0,0.00019726,2]
[315455025,1709044243372,-500.0,0.00019726,2]
[315455026,1709044243382,-500.0,0.00019726,2]
[315455027,1709044243392,-921.28,0.00019726,2]
[315455028,1709044243402,-500.0,0.00019726,2]
[315455029,1709044243411,-500.0,0.00019726,2]
[315455030,1709044243420,-500.0,0.00019726,2]
[315455031,1709044243429,-500.0,0.00019726,2]
[315455032,1709044243438,-500.0,0.00019726,2]
[315455033,1709044243447,-151.97029504,0.00019726,2]
[315455034,1709044243456,-2899.08,0.00019726,2]
[315455035,1709044243465,-509.27132953,0.00019726,2]
[315455036,1709044243474,-3088.1,0.00019726,2]
[315455037,1709044243484,-500.0,0.00019726,2]
[315455038,1709044243493,-500.0,0.00019726,2]
[315455039,1709044243503,-500.0,0.00019726,2]
[315455040,1709044243513,-500.0,0.00019726,2]
[315455041,1709044243522,-1264.04,0.00019726,2]
[315455042,1709044243531,-500.0,0.00019726,2]
[315455043,1709044243543,-500.0,0.00019726,2]
[315455044,1709044243553,-500.0,0.00019726,2]
[315455045,1709044243562,-826.81,0.00019726,2]
[315455046,1709044243571,-500.0,0.00019726,2]
[315455047,1709044243580,-500.0,0.00019726,2]
[315455048,1709044243589,-1946.63,0.00019726,2]
[315455049,1709044243598,-500.0,0.00019726,2]
[315455050,1709044243607,-500.0,0.00019726,2]
[315455051,1709044243617,-2030.08,0.00019726,2]
[315455052,1709044243626,-500.0,0.00019726,2]
[315455053,1709044243635,-500.0,0.00019726,2]
[315455054,1709044243645,-500.0,0.00019726,2]
[315455055,1709044243747,-500.0,0.00019726,2]
[315455056,1709044243757,-426.64264298,0.00019726,2]
[315455057,1709044243765,-500.0,0.00019726,2]
[315455058,1709044243774,-1631.71,0.00019726,2]
[315455059,1709044243784,-500.0,0.00019726,2]
[315455060,1709044243795,-500.0,0.00019726,2]
[315455061,1709044243804,-174.56092939,0.00019726,2]
[315455062,1709044243813,-500.0,0.00019726,2]
[315455063,1709044243822,-2362.65,0.00019726,2]
[315455064,1709044243832,-10013.57,0.00019726,2]
[315455065,1709044243843,-500.0,0.00019726,2]
[315455066,1709044243853,-555.05,0.00019726,2]
[315455067,1709044243862,-500.0,0.00019726,2]
[315455068,1709044243871,-500.0,0.00019726,2]
[315455069,1709044243880,-5236.31,0.00019726,2]
[315455070,1709044243889,-500.0,0.00019726,2]
[315455071,1709044243899,-2005.82,0.00019726,2]
[315455072,1709044243908,-500.0,0.00019726,2]
[315455073,1709044243918,-500.0,0.00019726,2]
[315455074,1709044243927,-500.0,0.00019726,2]
[315455075,1709044243936,-500.0,0.00019726,2]
[315455076,1709044243945,-21208.09,0.00019726,2]
[315455077,1709044243955,-500.0,0.00019726,2]
[315455078,1709044243964,-500.0,0.00019726,2]
[315455079,1709044243975,-263.75226372,0.00019726,2]
[315455080,1709044243984,-500.0,0.00019726,2]
[315455081,1709044243993,-500.0,0.00019726,2]
[315455082,1709044244002,-5187.04,0.00019726,2]
[315455083,1709044244011,-500.0,0.00019726,2]
[315455084,1709044244020,-500.0,0.00019726,2]
[315455085,1709044244029,-571.99,0.00019726,2]
[315455086,1709044244038,-500.0,0.00019726,2]
[315455087,1709044244049,-500.0,0.00019726,2]
[315455088,1709044244058,-500.0,0.00019726,2]
[315455089,1709044244067,-500.0,0.00019726,2]
[315455090,1709044244076,-1689.69,0.00019726,2]
[315455091,1709044244086,-500.0,0.00019726,2]
[315455092,1709044244095,-500.0,0.00019726,2]
[315455093,1709044244104,-3781.07,0.00019726,2]
[315455094,1709044244113,-1655.38,0.00019726,2]
[315455095,1709044244122,-500.0,0.00019726,2]
[315455096,1709044244132,-573.14809855,0.00019726,2]
[315455097,1709044244141,-1578.16,0.00019726,2]
[315455098,1709044244150,-500.0,0.00019726,2]
[315455099,1709044244159,-2673.35,0.00019726,2]
[315455100,1709044244168,-667.21,0.00019726,2]
[315455101,1709044244177,-7801.82,0.00019726,2]
[315455102,1709044244186,-20188.02,0.00019726,2]
[315455103,1709044244195,-3796.7,0.00019726,2]
[315455104,1709044244204,-1657.02,0.00019726,2]
[315455105,1709044244214,-3901.79,0.00019726,2]
[315455106,1709044244223,-500.0,0.00019726,2]
[315455107,1709044244232,-4659.57,0.00019726,2]
[315455108,1709044244241,-500.0,0.00019726,2]
[315455109,1709044244250,-93.75437433,0.00019726,2]
[315455110,1709044244287,-724.81562567,0.00019726,2]
[315455111,1709044244299,-411.30586833,0.00019726,2]
[315455112,1709044244523,-500.0,0.00019178,2]
[315455113,1709044244534,-501.50917574,0.00019178,2]
[315455114,1709044244547,-500.0,0.00019452,2]
[315455115,1709044244557,-523.06413167,0.00019726,2]
[315455116,1709044244566,-1080.01,0.00019726,2]
[315455117,1709044244575,-500.0,0.00019726,2]
[315455118,1709044244585,-714.22,0.00019726,2]
[315455119,1709044244595,-319.0,0.00019726,2]
[315455120,1709044244605,-500.0,0.00019727,2]
[315455121,1709044244615,-153.0,0.00019727,2]
[315455122,1709044244624,-200.6117409,0.000198,2]
[315455123,1709044244633,-153.0,0.000198,2]
[315455124,1709044244643,-401.1686962,0.000198,2]
[315455125,1709044244653,-153.0,0.000198,2]
[315455126,1709044244663,-500.0,0.00019829,2]
[315455127,1709044244672,-211.03122966,0.00019858,2]
[315455128,1709044244683,-8231.22000589,0.0001991,2]
[315455129,1709044244692,-500.0,0.00019931,2]
[315455130,1709044244701,-200.6117409,0.00019959,2]
[315455131,1709044244711,-200.6117409,0.00019959,2]
[315455132,1709044244722,-200.6117409,0.00019959,2]
[315455133,1709044244731,-200.6117409,0.00019959,2]
[315455134,1709044244740,-200.6117409,0.00019959,2]
[315455135,1709044244751,-200.6117409,0.00019959,2]
[315455136,1709044244762,-2203.45665373,0.0002,2]
[315455137,1709044244771,-176.82229064,0.0002,2]
[315455138,1709044244781,-200.6117409,0.0002,2]
[315455139,1709044244794,-401.1361653,0.0002,2]
[315455140,1709044244803,-500.0,0.0002,2]
[315455141,1709044244812,-221.19583343,0.0002,2]
[315455142,1709044244821,-500.0,0.0002,2]
[315455143,1709044244831,-500.0,0.0002,2]
[315455144,1709044244840,-500.0,0.0002,2]
[315455145,1709044244849,-744.5,0.0002,2]
[315455146,1709044244858,-500.0,0.0002,2]
[315455147,1709044244867,-500.0,0.0002,2]
[315455148,1709044244876,-710.74,0.0002,2]
[315455149,1709044244885,-500.0,0.0002,2]
[315455150,1709044244895,-500.0,0.0002,2]
[315455151,1709044244905,-500.0,0.0002,2]
[315455152,1709044244914,-660.55,0.0002,2]
[315455153,1709044244923,-1392.53,0.0002,2]
[315455154,1709044244933,-500.0,0.0002,2]
[315455155,1709044244942,-868.95,0.0002,2]
[315455156,1709044244951,-500.0,0.0002,2]
[315455157,1709044244960,-1010.15,0.0002,2]
[315455158,1709044244969,-500.0,0.0002,2]
[315455159,1709044244978,-500.0,0.0002,2]
[315455160,1709044244987,-500.0,0.0002,2]
[315455161,1709044244996,-177.110656,0.0002,2]
[315455162,1709044245007,-500.0,0.0002,2]
[315455163,1709044245017,-500.0,0.0002,2]
[315455164,1709044245028,-500.0,0.0002,2]
[315455165,1709044245037,-502.34843304,0.0002,2]
[315455166,1709044245051,-500.0,0.0002,2]
[315455167,1709044245060,-500.0,0.0002,2]
[315455168,1709044245069,-500.0,0.0002,2]
[315455169,1709044245079,-500.0,0.0002,2]
[315455170,1709044245088,-1821.31,0.0002,2]
[315455171,1709044245098,-1707.84,0.0002,2]
[315455172,1709044245108,-500.0,0.0002,2]
[315455173,1709044245117,-500.0,0.0002,2]
[315455174,1709044245127,-500.0,0.0002,2]
[315455175,1709044245136,-500.0,0.0002,2]
[315455176,1709044245146,-500.0,0.0002,2]
[315455177,1709044245155,-500.0,0.0002,2]
[315455178,1709044245165,-500.0,0.0002,2]
[315455179,1709044245174,-500.0,0.0002,2]
[315455180,1709044245183,-1022.66,0.0002,2]
[315455181,1709044245193,-500.0,0.0002,2]
[315455182,1709044245202,-500.0,0.0002,2]
[315455183,1709044245212,-500.0,0.0002,2]
[315455184,1709044245221,-500.0,0.0002,2]
[315455185,1709044245233,-515.5973225,0.0002,2]
[315455186,1709044245243,-500.0,0.0002,2]
[315455187,1709044245252,-921.28,0.0002,2]
[315455188,1709044245261,-500.0,0.0002,2]
[315455189,1709044245271,-500.0,0.0002,2]
[315455190,1709044245280,-500.0,0.0002,2]
[315455191,1709044245295,-500.0,0.0002,2]
[315455192,1709044245305,-500.0,0.0002,2]
[315455193,1709044245317,-5210.17792478,0.0002,3]
[315455204,1709044246230,-500.0,0.00019178,2]
[315455206,1709044246240,-500.0,0.00019452,2]
[315455208,1709044246249,-500.0,0.00019726,2]
[315455209,1709044246258,-14755.91583872,0.0002,3]
[315455210,1709044246267,-2899.08,0.0002,2]
[315455211,1709044246276,-500.0,0.0002,2]
[315455212,1709044246285,-500.0,0.0002,2]
[315455213,1709044246297,-504.26102894,0.0002,2]
[315455214,1709044246306,-112.4953323,0.0002,2]
[315455215,1709044269625,501.47804492,0.000179,3]
[315455216,1709044287726,228.1195713,0.000179,3]
[315455247,1709045432461,-155.16913436,0.00018838,2]
[315455249,1709045432471,-170.71369676,0.00018838,2]
[315455250,1709045432480,-1591.62159516,0.00018839,2]
[315455251,1709045432489,-304.28012208,0.0001884,2]
[315455252,1709045432499,-155.16913436,0.0001884,2]
[315455253,1709045432508,-732.5753124,0.000189,2]
[315455255,1709045432518,-300.0,0.00019067,2]
[315455257,1709045432527,-260.72,0.00019068,3]
[315455259,1709045432536,-782.19,0.00019068,3]
[315455260,1709045432546,-555.34716751,0.00019076,2]
[315455261,1709045432556,-1562.45461811,0.00019076,2]
[315455262,1709045432566,-704.14144082,0.00019076,2]
[315455263,1709045432575,-324.11988706,0.00019076,2]
[315455264,1709045432584,-280.14317129,0.00019076,2]
[315455265,1709045432594,-224.54443976,0.00019078,2]
[315455266,1709045432603,-210.07403827,0.00019078,2]
[315455267,1709045432612,-56593.98282844,0.00019078,2]
[315455268,1709045432624,-309.61304631,0.00019078,2]
[315455269,1709045432635,-12105.06333482,0.00019078,2]
[315455270,1709045432647,-445.66370424,0.00019078,2]
[315455322,1709045441282,-1879.04617708,0.00018837,2]
[315455323,1709045441293,-206545.67708619,0.00019078,2]
[315455324,1709045441307,-501.97542393,0.00019178,2]
[315455325,1709045441316,-500.0,0.00019178,2]
[315455326,1709045441326,-500.0,0.00019178,2]
[315455327,1709045441336,-500.0,0.00019178,2]
[315455328,1709045441346,-450.13004601,0.00019178,2]
[315455329,1709045441355,-500.0,0.00019178,2]
[315455330,1709045441365,-500.0,0.00019178,2]
[315455331,1709045441375,-220.04820398,0.00019178,2]
[315455332,1709045441385,-500.0,0.00019178,2]
[315455333,1709045441394,-151.0,0.00019178,2]
[315455334,1709045441404,-500.64514974,0.00019178,2]